bitfinex/quotes_BTCUSD_20240815
["timestamp","ask_amount","ask_price","bid_price","bid_amount"]
[1723748546247,1e-08,58007.0,58000.0,0.08577727]
[1723748546488,1e-08,58007.0,58003.0,0.172402]
[1723748546743,1e-08,58007.0,57999.0,0.1]
[1723748546744,1e-08,58007.0,58002.0,0.172407]
[1723748546994,1e-08,58007.0,58002.0,0.172406]
[1723748547275,1e-08,58007.0,58006.0,0.73698611]
[1723748547477,1e-08,58007.0,58006.0,0.355395]
[1723748547713,1e-08,58007.0,58006.0,0.183]
[1723748548199,0.00090201,58007.0,58006.0,0.355395]
[1723748548987,0.00090201,58007.0,58006.0,0.707186]
[1723748549479,0.00090201,58007.0,58006.0,0.706186]
[1723748549818,0.00090201,58007.0,58006.0,0.720186]
[1723748550006,0.00090201,58007.0,58006.0,0.197]
[1723748550249,0.00090201,58007.0,58006.0,0.028]
[1723748550502,0.00090201,58007.0,58006.0,0.71674054]
[1723748550769,0.00090201,58007.0,58006.0,1.54972254]
[1723748551254,0.00090201,58007.0,58006.0,1.19093154]
[1723748551491,0.00090201,58007.0,58006.0,1.33747238]
[1723748552751,0.00090201,58007.0,58006.0,1.29093154]
[1723748553216,0.00090201,58007.0,58006.0,1.30493154]
[1723748553482,0.00086201,58007.0,58006.0,1.30493154]
[1723748553719,0.00086201,58007.0,58006.0,1.29093154]
[1723748554482,0.00086201,58007.0,58006.0,1.27693154]
[1723748554719,0.00086201,58007.0,58006.0,0.773586]
[1723748554918,0.00086201,58007.0,58006.0,1.28993154]
[1723748555164,0.00086201,58007.0,58006.0,1.34100469]
[1723748555389,0.00086201,58007.0,58006.0,1.28993154]
[1723748555605,0.009053,58013.0,58006.0,0.24610328]
[1723748555835,0.009053,58013.0,58007.0,0.1]
[1723748556098,0.009053,58013.0,58008.0,0.00344769]
[1723748556341,0.009053,58013.0,58007.0,0.27155454]
[1723748556552,0.009053,58013.0,58007.0,0.1]
[1723748556756,0.172382,58011.0,58007.0,0.1]
[1723748557015,0.172382,58011.0,58006.0,0.025]
[1723748557276,0.344756,58012.0,58006.0,0.025]
[1723748557517,0.009053,58013.0,58006.0,0.012]
[1723748558005,0.172383,58011.0,58006.0,0.021]
[1723748558214,0.172384,58010.0,58006.0,0.009]
[1723748558422,0.344764,58011.0,58006.0,0.009]
[1723748558636,0.517177,58007.0,58006.0,0.009]
[1723748558850,0.517177,58007.0,57992.0,0.172436]
[1723748558851,0.0507,58004.0,57992.0,0.172436]
[1723748559066,0.419913,58003.0,57990.0,0.47952]
[1723748559277,0.247491,58008.0,57992.0,0.344873]
[1723748559498,0.002,58011.0,57997.0,0.08577727]
[1723748559702,0.002,58012.0,58005.0,0.172398]
[1723748559940,0.002,58012.0,58006.0,0.001]
[1723748559941,0.006,58007.0,58006.0,0.001]
[1723748560153,0.344765,58011.0,58006.0,0.001]
[1723748560154,0.172387,58009.0,58006.0,0.00082]
[1723748560354,0.346757,58012.0,58006.0,0.00082]
[1723748560570,0.172392,58008.0,58006.0,0.00082]
[1723748560774,0.172392,58007.0,58006.0,0.00082]
[1723748560978,0.173392,58007.0,58006.0,0.00182]
[1723748561192,0.001,58007.0,58006.0,0.00182]
[1723748561394,0.000902,58012.0,58006.0,0.173215]
[1723748561545,0.000902,58012.0,58006.0,0.00082]
[1723748561753,0.001,58008.0,58006.0,0.00182]
[1723748562155,0.000902,58012.0,58006.0,0.00182]
[1723748562156,0.000902,58012.0,58008.0,0.0765]
[1723748562359,0.000902,58012.0,58008.0,0.1]
[1723748562360,0.172387,58009.0,58008.0,0.1]
[1723748562634,0.172387,58009.0,58006.0,0.00182]
[1723748562635,0.173392,58007.0,58006.0,0.00182]
[1723748562824,0.568877,58007.0,58006.0,0.00282]
[1723748563033,1.16031654,58007.0,58006.0,0.00282]
[1723748563215,1.50510154,58007.0,58006.0,0.00182]
[1723748563373,1.87288654,58007.0,58006.0,0.00182]
[1723748563765,1.52810154,58007.0,58006.0,0.00182]
[1723748563968,1.55109703,58007.0,58006.0,0.00082]
[1723748564169,0.992762,58007.0,58006.0,0.00182]
[1723748564387,0.647977,58007.0,58006.0,0.00182]
[1723748564603,0.81953154,58007.0,58006.0,0.00182]
[1723748564811,1.16431654,58007.0,58006.0,0.00182]
[1723748565282,1.16531654,58007.0,58006.0,0.00282]
[1723748565491,0.988762,58007.0,58006.0,0.00182]
[1723748565699,0.518177,58007.0,58006.0,0.00182]
[1723748565903,0.523177,58007.0,58006.0,0.00282]
[1723748566529,0.006,58007.0,58006.0,0.00282]
[1723748566740,0.006,58007.0,58006.0,0.596506]
[1723748566955,0.006,58007.0,58006.0,1.27865154]
[1723748567156,0.006,58007.0,58006.0,1.62344254]
[1723748567362,0.006,58007.0,58006.0,1.27865154]
[1723748567532,0.005,58007.0,58006.0,1.27765154]
[1723748568522,0.000902,58012.0,58011.0,0.517143]
[1723748569140,0.000902,58012.0,58011.0,0.172381]
[1723748569316,0.000902,58012.0,58010.0,0.172383]
[1723748569499,0.000902,58012.0,58009.0,0.344773]
[1723748569700,0.000902,58012.0,58010.0,0.1]
[1723748570351,0.000902,58012.0,58010.0,0.272383]
[1723748570637,0.000902,58012.0,58011.0,0.174381]
[1723748570768,0.000902,58012.0,58011.0,0.519143]
[1723748570970,0.000902,58012.0,58011.0,0.527143]
[1723748571199,0.000902,58012.0,58011.0,0.182381]
[1723748571750,0.000902,58012.0,58011.0,0.527143]
[1723748572158,0.000902,58012.0,58011.0,0.531143]
[1723748572962,0.000902,58012.0,58011.0,0.521143]
[1723748573262,0.000902,58012.0,58011.0,0.176381]
[1723748573487,0.000902,58012.0,58011.0,0.004]
[1723748574117,0.000902,58012.0,58011.0,0.007]
[1723748574741,0.000902,58012.0,58011.0,1.52952154]
[1723748574942,0.009053,58013.0,58012.0,0.600034]
[1723748575153,0.009053,58013.0,58012.0,1.62250054]
[1723748576695,0.009053,58013.0,58012.0,1.62450054]
[1723748576901,0.009053,58013.0,58012.0,1.62250054]
[1723748577304,0.009053,58013.0,58012.0,1.63650054]
[1723748577509,0.009053,58013.0,58012.0,1.62250054]
[1723748577716,0.009053,58013.0,58012.0,1.63650054]
[1723748577894,0.009053,58013.0,58012.0,1.65050054]
[1723748578100,0.009053,58013.0,58012.0,1.63650054]
[1723748578306,0.009053,58013.0,58012.0,1.64673682]
[1723748578511,0.009053,58013.0,58012.0,1.66073682]
[1723748579952,0.009053,58013.0,58012.0,1.63273682]
[1723748580162,0.009053,58013.0,58012.0,1.30198082]
[1723748580389,0.009053,58013.0,58012.0,0.45491428]
[1723748580604,0.009053,58013.0,58012.0,0.79967028]
[1723748580808,0.009053,58013.0,58012.0,0.44091428]
[1723748581020,0.009053,58013.0,58012.0,0.78567028]
[1723748581230,0.009053,58013.0,58012.0,1.13042628]
[1723748581431,0.009053,58013.0,58012.0,0.78567028]
[1723748581877,0.009053,58013.0,58012.0,0.79967028]
[1723748582454,0.009053,58013.0,58012.0,0.45491428]
[1723748582662,0.009053,58013.0,58012.0,0.79967028]
[1723748583024,0.009053,58013.0,58012.0,1.48918228]
[1723748583478,0.009053,58013.0,58012.0,1.13042628]
[1723748583708,0.009053,58013.0,58012.0,0.78567028]
[1723748583935,0.009053,58013.0,58012.0,0.13823628]
[1723748584340,0.009053,58013.0,58012.0,0.31061428]
[1723748584618,0.009053,58013.0,58012.0,1.00012628]
[1723748584831,0.009053,58013.0,58012.0,1.42528228]
[1723748585519,0.009053,58013.0,58012.0,1.08052628]
[1723748586731,0.009053,58013.0,58012.0,1.59683682]
[1723748586936,0.009053,58013.0,58012.0,1.25208082]
[1723748587131,0.009053,58013.0,58012.0,0.59671054]
[1723748587333,0.009053,58013.0,58012.0,0.86908854]
[1723748587532,0.009053,58013.0,58012.0,1.56873922]
[1723748588311,0.009053,58013.0,58012.0,1.63153922]
[1723748588575,0.009053,58013.0,58012.0,2.0136145]
[1723748589956,0.010053,58013.0,58012.0,2.0276145]
[1723748590780,0.010053,58013.0,58012.0,2.0166145]
[1723748590988,0.011053,58013.0,58012.0,2.0176145]
[1723748591607,0.010053,58013.0,58012.0,2.14288897]
[1723748591831,0.009053,58013.0,58012.0,2.14188897]
[1723748592024,0.010053,58013.0,58012.0,2.14288897]
[1723748592200,0.010053,58013.0,58012.0,2.0146145]
[1723748593063,0.010053,58013.0,58012.0,2.14288897]
[1723748593267,0.010053,58013.0,58012.0,2.0286145]
[1723748593268,0.011053,58013.0,58012.0,2.0286145]
[1723748593473,0.0002,58019.0,58018.0,1.34532]
[1723748593643,0.009053,58032.0,58020.0,0.818962]
[1723748593848,0.0617,58029.0,58020.0,0.63172928]
[1723748594049,0.0617,58029.0,58020.0,0.1]
[1723748594265,0.06600832,58029.0,58020.0,0.1]
[1723748594436,0.09483027,58032.0,58012.0,0.015]
[1723748594437,0.172375,58013.0,58012.0,0.015]
[1723748594635,1.47111704,58013.0,58012.0,0.015]
[1723748594837,1.51557954,58013.0,57996.0,0.05136385]
[1723748595061,1.51557954,58013.0,57994.0,0.07703001]
[1723748595062,0.60295427,58007.0,57994.0,0.05136385]
[1723748595259,1.02343927,58007.0,57994.0,0.17243]
[1723748595463,1.19499381,58007.0,57992.0,0.344872]
[1723748595664,1.34896979,58007.0,57991.0,0.172439]
[1723748595866,1.34896979,58007.0,57990.0,0.00082]
[1723748595867,1.77845479,58007.0,57990.0,0.00082]
[1723748596621,1.62447881,58007.0,57990.0,0.00082]
[1723748597233,0.654721,57991.0,57990.0,0.00082]
[1723748597437,1.17115654,57991.0,57990.0,0.00082]
[1723748598673,1.51603754,57991.0,57990.0,0.00082]
[1723748598889,1.69064129,57991.0,57990.0,0.00082]
[1723748599091,1.69064129,57991.0,57980.0,0.000821]
[1723748599092,0.93805,57981.0,57980.0,0.000821]
[1723748599296,1.45454454,57981.0,57980.0,0.000821]
[1723748599517,1.79948454,57981.0,57980.0,0.000821]
[1723748599726,1.99403908,57981.0,57980.0,0.000821]
[1723748599931,0.0758,57966.0,57952.0,0.1399]
[1723748600140,0.172533,57960.0,57952.0,0.1399]
[1723748600346,0.345061,57961.0,57952.0,0.1399]
[1723748600347,0.172539,57958.0,57952.0,0.1399]
[1723748600528,0.172533,57960.0,57952.0,0.1399]
[1723748600795,0.172528,57962.0,57952.0,0.312456]
[1723748601000,0.172528,57962.0,57953.0,0.172553]
[1723748601203,0.17684352,57961.0,57953.0,0.172553]
[1723748601376,0.17684352,57961.0,57952.0,0.175555]
[1723748601611,0.17684352,57961.0,57952.0,0.004]
[1723748601819,0.24735454,57966.0,57957.0,0.08577727]
[1723748602024,0.17155454,57966.0,57963.0,0.08577727]
[1723748602627,0.0817,57972.0,57963.0,0.08577727]
[1723748602844,0.17155454,57971.0,57963.0,0.08577727]
[1723748603050,0.1426,57987.0,57970.0,0.345005]
[1723748603230,0.172467,57982.0,57974.0,0.17249]
[1723748603467,0.17155454,57981.0,57969.0,0.08577727]
[1723748604073,0.17155454,57981.0,57971.0,0.344999]
[1723748604278,0.17155454,57981.0,57970.0,0.001]
[1723748604487,0.5175,57971.0,57970.0,0.001]
[1723748604691,1.43995454,57971.0,57970.0,0.001]
[1723748604891,0.345032,57966.0,57955.0,0.0817]
[1723748605095,0.172527,57962.0,57955.0,0.0817]
[1723748605297,0.17684463,57961.0,57955.0,0.0817]
[1723748605471,0.172533,57960.0,57955.0,0.0817]
[1723748605928,0.17253,57961.0,57953.0,0.172553]
[1723748606131,0.34408054,57963.0,57957.0,0.08577727]
[1723748606368,0.34408054,57963.0,57946.0,0.345146]
[1723748606369,1.207979,57948.0,57937.0,0.000821]
[1723748606572,1.776916,57948.0,57937.0,0.000821]
[1723748606750,1.208102,57942.0,57937.0,0.000821]
[1723748606961,1.553382,57938.0,57937.0,0.000821]
[1723748607221,1.553382,57938.0,57932.0,0.00822]
[1723748607222,0.517839,57933.0,57932.0,0.00822]
[1723748607424,1.919917,57933.0,57932.0,0.00822]
[1723748607630,2.13104541,57933.0,57932.0,0.00822]
[1723748607837,2.13104541,57933.0,57922.0,0.00822]
[1723748607838,1.208497,57923.0,57922.0,0.00822]
[1723748608045,1.208497,57923.0,57897.0,0.00822]
[1723748608046,0.741826,57912.0,57897.0,0.141]
[1723748608286,1.60408254,57912.0,57891.0,0.1412]
[1723748608508,1.60408254,57912.0,57891.0,0.0002]
[1723748608509,1.87528079,57912.0,57891.0,0.0002]
[1723748608725,2.22063179,57912.0,57891.0,0.0002]
[1723748608963,1.99683179,57912.0,57891.0,0.0002]
[1723748609408,1.65148079,57912.0,57891.0,0.0002]
[1723748609615,0.17155454,57912.0,57901.0,0.0631]
[1723748609824,0.34854701,57912.0,57901.0,0.0631]
[1723748610025,0.34854701,57912.0,57902.0,0.172703]
[1723748610229,1.04363126,57912.0,57911.0,0.00942]
[1723748610459,0.34361179,57912.0,57911.0,0.00842]
[1723748610900,1.04331379,57912.0,57911.0,0.00842]
[1723748611307,1.03931379,57912.0,57911.0,0.00842]
[1723748611714,1.04631379,57912.0,57911.0,0.00942]
[1723748611922,1.53083047,57912.0,57911.0,0.00942]
[1723748612536,1.04631379,57912.0,57911.0,0.00942]
[1723748612959,0.35561179,57912.0,57911.0,0.00942]
[1723748613189,0.70096279,57912.0,57911.0,0.00942]
[1723748613399,1.04631379,57912.0,57911.0,0.00942]
[1723748613600,1.83361579,57912.0,57911.0,0.00842]
[1723748613806,2.1117249,57912.0,57911.0,0.00842]
[1723748614005,1.7663739,57912.0,57911.0,0.00842]
[1723748614207,2.1117249,57912.0,57911.0,0.00842]
[1723748614439,2.1077249,57912.0,57911.0,0.00842]
[1723748614635,2.1117249,57912.0,57911.0,0.00842]
[1723748614953,2.1077249,57912.0,57911.0,0.00842]
[1723748615401,2.1127249,57912.0,57911.0,0.00942]
[1723748615778,2.4670759,57912.0,57911.0,0.01042]
[1723748615980,2.4670759,57912.0,57891.0,0.0002]
[1723748615981,0.518205,57892.0,57891.0,0.0002]
[1723748616409,1.03522954,57892.0,57891.0,0.0002]
[1723748616625,1.03502205,57892.0,57891.0,0.0002]
[1723748616773,1.38049205,57892.0,57891.0,0.0002]
[1723748617763,1.41249205,57892.0,57891.0,0.0012]
[1723748617980,1.56800126,57892.0,57891.0,0.0012]
[1723748618434,1.55900126,57892.0,57891.0,0.0002]
[1723748618557,1.41149205,57892.0,57891.0,0.0012]
[1723748618757,1.41749205,57892.0,57891.0,0.0022]
[1723748619195,1.41149205,57892.0,57891.0,0.0012]
[1723748619400,1.42249205,57892.0,57891.0,0.0022]
[1723748619600,1.57900125,57892.0,57891.0,0.0022]
[1723748620006,1.03502205,57892.0,57891.0,0.0002]
[1723748620212,1.04302205,57892.0,57891.0,0.0002]
[1723748620405,1.05302205,57892.0,57891.0,0.0012]
[1723748620916,0.18155454,57892.0,57891.0,0.0012]
[1723748621120,0.19287351,57892.0,57891.0,0.0012]
[1723748621329,1e-08,57892.0,57891.0,0.002021]
[1723748621503,0.67142239,57892.0,57891.0,0.002021]
[1723748621698,1.01689239,57892.0,57891.0,0.002021]
[1723748621901,1.36236239,57892.0,57891.0,0.002021]
[1723748622162,1.84406863,57892.0,57891.0,0.002021]
[1723748622338,1.38536239,57892.0,57891.0,0.002021]
[1723748622740,1.03989239,57892.0,57891.0,0.002021]
[1723748623136,0.67142239,57892.0,57891.0,0.002021]
[1723748624218,0.67842239,57892.0,57891.0,0.003021]
[1723748624592,0.16139785,57892.0,57891.0,0.003021]
[1723748624794,0.525205,57892.0,57891.0,0.003021]
[1723748624998,0.172735,57892.0,57891.0,0.002021]
[1723748625196,0.172735,57892.0,57891.0,0.001021]
[1723748625449,0.002,57892.0,57891.0,0.001021]
[1723748625626,0.174735,57892.0,57891.0,0.001021]
[1723748626233,0.002,57892.0,57891.0,0.001021]
[1723748626587,0.65676362,57906.0,57891.0,0.001021]
[1723748626792,0.17273,57894.0,57891.0,0.001021]
[1723748627125,0.004,57892.0,57891.0,0.001021]
[1723748627699,0.345448,57896.0,57891.0,0.001021]
[1723748627903,0.1,57913.0,57891.0,0.005021]
[1723748627904,0.17155454,57895.0,57891.0,0.005021]
[1723748628111,0.518205,57892.0,57891.0,0.005021]
[1723748628333,1.52279954,57892.0,57891.0,0.005021]
[1723748628531,1.54579954,57892.0,57891.0,0.001021]
[1723748628736,1.69807949,57892.0,57891.0,0.002021]
[1723748629185,1.69807949,57892.0,57891.0,0.001021]
[1723748629977,1.92277949,57892.0,57891.0,0.001021]
[1723748630526,1.93568963,57892.0,57891.0,0.006021]
[1723748630673,1.72250968,57892.0,57891.0,0.006021]
[1723748630869,1.72250968,57892.0,57891.0,0.001021]
[1723748631078,1.72250968,57892.0,57891.0,0.003021]
[1723748631277,1.89406422,57892.0,57891.0,0.003021]
[1723748632315,1.72250968,57892.0,57891.0,0.003021]
[1723748633557,1.29674389,57892.0,57891.0,0.003021]
[1723748633686,1.04904389,57892.0,57891.0,0.003021]
[1723748634350,1.03613375,57892.0,57891.0,0.003021]
[1723748635354,0.69066375,57892.0,57891.0,0.003021]
[1723748635561,1.03613375,57892.0,57891.0,0.003021]
[1723748635897,1.70991713,57892.0,57891.0,0.004021]
[1723748636094,1.73291713,57892.0,57891.0,0.004021]
[1723748636527,1.62930375,57892.0,57891.0,0.001021]
[1723748636730,1.62930375,57892.0,57891.0,0.003021]
[1723748636925,1.62930375,57892.0,57891.0,0.006021]
[1723748637273,1.62930375,57892.0,57891.0,0.004021]
[1723748637618,1.62930375,57892.0,57891.0,0.009021]
[1723748637822,1.80081185,57892.0,57891.0,0.009021]
[1723748638455,1.62930375,57892.0,57891.0,0.009021]
[1723748638684,1.62930375,57892.0,57891.0,0.006021]
[1723748638685,1.38160375,57892.0,57891.0,0.006021]
[1723748639574,1.38160375,57892.0,57891.0,0.001021]
[1723748640006,1.38160375,57892.0,57891.0,0.003021]
[1723748640797,1.03613375,57892.0,57891.0,0.003021]
[1723748641056,0.00090421,57892.0,57891.0,0.003021]
[1723748641328,1.07076937,57892.0,57891.0,0.003021]
[1723748641554,1.72707375,57892.0,57891.0,0.003021]
[1723748641887,1.03613375,57892.0,57891.0,0.003021]
[1723748642088,0.17363921,57892.0,57891.0,0.003021]
[1723748642292,0.51910921,57892.0,57891.0,0.083521]
[1723748642497,1.03613375,57892.0,57891.0,0.003021]
[1723748642718,0.00090421,57892.0,57891.0,0.003021]
[1723748642925,0.51910921,57892.0,57891.0,0.003021]
[1723748643121,0.86457921,57892.0,57891.0,0.001021]
[1723748643322,1.38260375,57892.0,57891.0,0.007021]
[1723748643521,1.40560375,57892.0,57891.0,0.012021]
[1723748643976,1.40460375,57892.0,57891.0,0.001021]
[1723748644316,1.40460375,57892.0,57891.0,0.006021]
[1723748644751,1.48813341,57892.0,57891.0,0.006021]
[1723748644951,1.75007375,57892.0,57891.0,0.006021]
[1723748645103,1.83177375,57892.0,57891.0,0.006021]
[1723748645839,1.83177375,57892.0,57883.0,0.00822]
[1723748645840,1.291013,57884.0,57883.0,0.00822]
[1723748645999,1.291013,57884.0,57883.0,0.00021169]
[1723748646000,2.61036343,57884.0,57883.0,0.00021169]
[1723748646213,1.209397,57880.0,57879.0,0.00822]
[1723748646392,1.58195086,57880.0,57879.0,0.00822]
[1723748646591,1.40395154,57880.0,57879.0,0.00822]
[1723748646971,1.38095154,57880.0,57879.0,0.00822]
[1723748647171,1.03540954,57880.0,57879.0,0.00822]
[1723748647371,1.38095154,57880.0,57879.0,0.00822]
[1723748647571,1.03940954,57880.0,57879.0,0.00922]
[1723748647834,1.03940954,57880.0,57861.0,0.01315631]
[1723748647835,0.0817,57852.0,57843.0,0.00823]
[1723748648047,0.518635,57844.0,57843.0,0.00823]
[1723748648478,0.864392,57844.0,57843.0,0.00823]
[1723748649262,0.69018954,57844.0,57843.0,0.15293]
[1723748649464,0.01289831,57854.0,57843.0,0.15293]
[1723748649663,0.172878,57844.0,57843.0,0.15293]
[1723748649867,0.003,57844.0,57843.0,0.15293]
[1723748650230,0.006,57844.0,57843.0,0.15393]
[1723748650456,0.011,57844.0,57843.0,0.326811]
[1723748650691,0.17655454,57844.0,57843.0,0.00823]
[1723748650957,0.3457,57854.0,57843.0,0.00823]
[1723748651192,0.43147227,57855.0,57843.0,0.01223]
[1723748651434,0.17155454,57854.0,57845.0,0.34575]
[1723748651663,0.02674773,57861.0,57847.0,0.345737]
[1723748651913,0.17155454,57860.0,57849.0,0.0815]
[1723748652140,0.17155454,57860.0,57850.0,0.34572]
[1723748652352,0.17155454,57860.0,57854.0,0.172846]
[1723748652567,0.17155454,57860.0,57852.0,0.172852]
[1723748652791,0.18870999,57860.0,57855.0,0.172844]
[1723748652967,0.18870999,57860.0,57853.0,0.17285]
[1723748653188,0.17155454,57860.0,57854.0,0.172848]
[1723748653407,0.17555454,57860.0,57854.0,0.172848]
[1723748653603,0.17155454,57860.0,57852.0,0.345708]
[1723748653805,0.17155454,57860.0,57853.0,0.17285]
[1723748654007,0.17855454,57860.0,57852.0,0.345708]
[1723748654220,0.17855454,57860.0,57855.0,0.172844]
[1723748654726,0.17555454,57860.0,57854.0,0.345692]
[1723748654912,0.004,57860.0,57859.0,0.5992]
[1723748655171,0.004,57860.0,57837.0,0.00011]
[1723748655172,0.172878,57844.0,57837.0,0.00011]
[1723748655372,0.18884234,57844.0,57837.0,0.00011]
[1723748655572,0.36172034,57844.0,57837.0,0.00011]
[1723748655700,0.17155454,57844.0,57839.0,0.172891]
[1723748655905,0.2247,57858.0,57848.0,0.172864]
[1723748656124,0.003,57860.0,57844.0,0.0646]
[1723748656125,0.17155454,57857.0,57844.0,0.0646]
[1723748656404,0.17155454,57857.0,57856.0,0.253542]
[1723748656617,0.60044089,57868.0,57856.0,0.0807]
[1723748656778,0.17155454,57867.0,57856.0,0.0807]
[1723748657135,0.17155454,57857.0,57844.0,0.000822]
[1723748657301,0.60440327,57845.0,57844.0,0.000822]
[1723748657514,0.77595781,57845.0,57844.0,0.000822]
[1723748657746,1.22170881,57845.0,57844.0,0.000822]
[1723748657917,1.24470881,57845.0,57844.0,0.000822]
[1723748658118,1.59045981,57845.0,57844.0,0.000782]
[1723748658322,1.75722579,57845.0,57844.0,0.000782]
[1723748658738,1.41147479,57845.0,57844.0,0.000782]
[1723748658913,1.31147479,57845.0,57844.0,0.000782]
[1723748659125,1.65722579,57845.0,57844.0,0.000782]
[1723748659284,0.34442954,57845.0,57844.0,0.000782]
[1723748659483,0.0772,57861.0,57845.0,0.0807]
[1723748659687,0.345682,57857.0,57845.0,0.0807]
[1723748659924,0.16297727,57861.0,57844.0,0.000782]
[1723748659925,0.532626,57845.0,57844.0,0.000782]
[1723748660184,1.569879,57845.0,57844.0,0.000782]
[1723748660379,1.210275,57838.0,57831.0,0.0002]
[1723748660692,2.00464527,57838.0,57831.0,0.0002]
[1723748660893,2.38075435,57838.0,57831.0,0.0002]
[1723748661029,2.47075435,57838.0,57831.0,0.0002]
[1723748661657,2.38497708,57838.0,57831.0,0.0002]
[1723748662042,1.98872254,57838.0,57831.0,0.0002]
[1723748662407,1.65692954,57838.0,57837.0,0.00111]
[1723748662616,1.64292954,57838.0,57837.0,0.00011]
[1723748662787,1.81544249,57838.0,57837.0,0.00011]
[1723748663156,1.81544249,57838.0,57837.0,0.00211]
[1723748663157,1.67714954,57838.0,57837.0,0.00211]
[1723748663567,1.61624954,57838.0,57837.0,0.00211]
[1723748663777,1.60324954,57838.0,57837.0,0.00111]
[1723748663910,1.78196449,57838.0,57837.0,0.00211]
[1723748664110,2.05055749,57838.0,57837.0,0.00211]
[1723748664982,1.70476449,57838.0,57837.0,0.00211]
[1723748665571,1.70476449,57838.0,57812.0,0.003661]
[1723748665572,0.1426,57814.0,57791.0,0.0002]
[1723748665912,0.173031,57793.0,57792.0,0.09062]
[1723748666343,0.519093,57793.0,57792.0,0.09142]
[1723748666549,1.211217,57793.0,57792.0,0.09142]
[1723748666960,1.211217,57793.0,57792.0,0.09242]
[1723748667405,1.52689324,57793.0,57792.0,0.00922]
[1723748667812,1.87295524,57793.0,57792.0,0.00922]
[1723748668018,1.38277154,57793.0,57792.0,0.00822]
[1723748668222,1.38377154,57793.0,57792.0,0.00822]
[1723748669277,1.75283354,57793.0,57792.0,0.00822]
[1723748669484,1.92538808,57793.0,57792.0,0.01122]
[1723748671041,1.75383354,57793.0,57792.0,0.01122]
[1723748671267,1.38477154,57793.0,57792.0,0.01122]
[1723748671750,1.38477154,57793.0,57751.0,0.0002]
[1723748671751,0.79821678,57755.0,57751.0,0.0002]
[1723748671988,1.21164691,57752.0,57751.0,0.0002]
[1723748672209,1.58095491,57752.0,57751.0,0.0002]
[1723748672447,1.58095491,57752.0,57705.0,0.3]
[1723748672448,0.01,57748.0,57731.0,0.0580477]
[1723748672674,0.173206,57735.0,57731.0,0.0580477]
[1723748672902,0.519642,57732.0,57731.0,0.0580477]
[1723748673133,0.69119654,57732.0,57731.0,0.0580477]
[1723748673366,0.17155454,57732.0,57731.0,0.0580477]
[1723748673596,0.346393,57738.0,57731.0,0.0580477]
[1723748673818,0.346359,57744.0,57731.0,0.0580477]
[1723748674032,0.001,57735.0,57734.0,0.00823]
[1723748674424,0.17155454,57735.0,57734.0,0.00823]
[1723748674646,1.16057954,57735.0,57734.0,0.00823]
[1723748674854,1.62304749,57735.0,57734.0,0.00823]
[1723748675055,1.62404749,57735.0,57734.0,0.00823]
[1723748675268,1.62304749,57735.0,57734.0,0.00823]
[1723748675835,1.62404749,57735.0,57734.0,0.00823]
[1723748676027,1.62404749,57735.0,57734.0,1e-06]
[1723748676028,2.47176749,57735.0,57734.0,1e-06]
[1723748676212,2.12535749,57735.0,57734.0,1e-06]
[1723748676439,2.48476749,57735.0,57734.0,1e-06]
[1723748676658,2.49776749,57735.0,57734.0,0.001001]
[1723748677064,2.50476749,57735.0,57734.0,1e-06]
[1723748677271,2.48476749,57735.0,57734.0,1e-06]
[1723748677465,2.15235749,57735.0,57734.0,0.001001]
[1723748677666,2.75756749,57735.0,57734.0,1e-06]
[1723748677867,2.39815749,57735.0,57734.0,1e-06]
[1723748678105,2.38815749,57735.0,57734.0,1e-06]
[1723748678310,2.40215749,57735.0,57734.0,1e-06]
[1723748678693,2.28609954,57735.0,57734.0,1e-06]
[1723748679134,1.41198954,57735.0,57734.0,1e-06]
[1723748680038,0.18555454,57735.0,57725.0,0.08577727]
[1723748680240,0.60044089,57760.0,57725.0,0.08577727]
[1723748680241,0.078,57768.0,57735.0,0.0799]
[1723748680415,0.51466362,57761.0,57751.0,0.1437]
[1723748680815,0.51466362,57761.0,57734.0,0.08677727]
[1723748680816,0.01,57766.0,57735.0,0.0638]
[1723748681143,0.2588,57767.0,57745.0,0.0799]
[1723748681349,0.01,57777.0,57745.0,0.0799]
[1723748681350,0.078,57774.0,57746.0,0.0638]
[1723748681553,0.68621816,57747.0,57724.0,0.0638]
[1723748681727,0.014,57735.0,57726.0,0.08577727]
[1723748681928,0.014,57735.0,57724.0,0.0638]
[1723748682112,0.024,57735.0,57734.0,0.001]
[1723748682310,0.024,57735.0,57734.0,0.24768573]
[1723748682512,0.024,57735.0,57734.0,0.586247]
[1723748682717,0.173177,57745.0,57734.0,0.147023]
[1723748682943,0.51466362,57741.0,57734.0,0.147023]
[1723748683239,0.17155454,57740.0,57734.0,0.147023]
[1723748683425,0.17155454,57740.0,57734.0,0.32023]
[1723748683643,0.007,57735.0,57734.0,1.359478]
[1723748683846,0.007,57735.0,57734.0,0.000823]
[1723748683847,0.519615,57735.0,57734.0,0.000823]
[1723748684099,1.558845,57735.0,57734.0,0.000823]
[1723748684299,1.905255,57735.0,57734.0,0.000823]
[1723748685232,1.581845,57735.0,57734.0,0.000823]
[1723748685558,1.582845,57735.0,57734.0,0.000823]
[1723748686010,1.682845,57735.0,57734.0,0.000823]
[1723748686187,1.689845,57735.0,57734.0,0.001823]
[1723748688092,1.689845,57735.0,57734.0,0.001783]
[1723748689944,1.86139954,57735.0,57734.0,0.001783]
[1723748690487,1.51498954,57735.0,57734.0,0.001783]
[1723748690818,1.41498954,57735.0,57734.0,0.001783]
[1723748691250,1.55648849,57735.0,57734.0,0.001783]
[1723748691461,1.41498954,57735.0,57734.0,0.001783]
[1723748694288,1.41589705,57735.0,57734.0,0.001783]
[1723748694775,0.72307705,57735.0,57734.0,0.001783]
[1723748695006,0.72307705,57735.0,57734.0,0.062983]
[1723748695007,0.00890751,57735.0,57734.0,0.062983]
[1723748695501,0.00890751,57735.0,57734.0,0.663807]
[1723748695718,0.00190751,57735.0,57734.0,1.009223]